[Event "III Menorca Open-A 2024"]
[Site "Ciutadella Menorca"]
[Date "2024.04.05"]
[Round "6.14"]
[White "Yuffa, Daniil"]
[Black "Baskin, Robert"]
[Result "1-0"]
[ECO "D11"]
[WhiteElo "2606"]
[BlackElo "2461"]
[Annotator "TA"]
[PlyCount "93"]
[EventDate "2024.04.02"]
[EventType "swiss"]
[EventCountry "ESP"]
[SourceTitle "playchess.com"]
[Source "ChessBase"]
[SourceQuality "1"]
[TimeControl "5400+30"]

{[%evp 9,93,8,21,19,31,38,51,47,30,11,18,15,35,34,44,16,19,14,50,45,54,46,46,35,100,85,89,93,150,150,150,150,150,150,150,150,150,150,150,150,150,136,136,136,129,129,129,129,129,129,129,129,185,181,181,181,181,181,181,181,181,181,212,212,212,212,227,212,235,215,270,214,358,212,358,358,358,348,416,361,705,777,776,768,754,740]} 1. Nf3 {[%emt 0:01:16]} d5 {[%emt 0:00:26]} 2. c4 {[%emt 0:00:15]} c6 {[%emt 0:00:19]} 3. d4 {[%emt 0:00:08]} Nf6 {[%emt 0:00:07]} 4. g3 {[%emt 0:00:04]} Bf5 {[%emt 0:00:29]} 5. Nc3 {[%emt 0:00:18]} e6 {[%emt 0:00:13]} 6. Nh4 {[%emt 0:00:06]} Be4 {[%emt 0:00:24]} 7. f3 {[%emt 0:00:13]} Bg6 {[%emt 0:00:07]} 8. Qb3 {[%emt 0:03:05] White is slightly better.} Qb6 {[%emt 0:00:18]} 9. c5 {[%emt 0:02:58]} Qxb3 {[%emt 0:00:17]} 10. axb3 {[%emt 0:00:17]} Na6 {[%emt 0:00:15]} 11. Nxg6 {[%emt 0:04:35]} hxg6 {[%emt 0:00:09]} 12. Bd2 {[%emt 0:10:31]} Nd7 {[%emt 0:08:57]} 13. e4 {[%emt 0:05:43]} Nc7 {[%emt 0:14:24]} 14. b4 {[%emt 0:01:19]} a6 {[%emt 0:00:45]} 15. h4 {[%emt 0:24:14]} Be7 {[%emt 0:03:03][%cal Og6g5]} 16. Rg1 {[%emt 0:03:09]} O-O-O {[%emt 0:04:57]} (16... dxe4 $14 17. fxe4 Rd8) 17. e5 $16 {[%emt 0:00:36] Black is on the road to losing.} f6 {[%emt 0:05:57]} 18. f4 {[%emt 0:00:13]} f5 {[%emt 0:07:50]} (18... fxe5 $142 19. dxe5 (19. fxe5 g5 $16) 19... Kb8) 19. Bd3 {[%emt 0:03:17]} Rh6 {[%emt 0:03:27]} 20. Ne2 {[%emt 0:01:47]} Rdh8 {[%emt 0:03:24]} 21. Nc1 {[%emt 0:02:52]} Bd8 {[%emt 0:03:25]} 22. Nb3 {[%emt 0:00:34]} Be7 {[%emt 0:06:35]} 23. Be3 {[%emt 0:00:29]} Nb8 {[%emt 0:01:10]} 24. Bf2 {[%emt 0:00:36]} Nd7 {[%emt 0:00:52]} 25. Ke2 {[%emt 0:00:20]} Bd8 {[%emt 0:04:39]} 26. Rg2 {[%emt 0:00:24]} Be7 {[%emt 0:00:08]} 27. Rag1 {[%emt 0:01:23]} Nf8 {[%emt 0:00:10]} 28. Nd2 {[%emt 0:04:07][%cal Bb3d2,Bd2f3,Bf3g5][%mdl 32]} Kd7 {[%emt 0:15:02]} 29. Nf3 {[%emt 0:00:15] White is more active.} Rh5 {[%emt 0:00:37]} 30. Ke3 {[%emt 0:04:02]} R8h6 {[%emt 0:01:20]} (30... R5h7 $16 {might work better.} 31. Ra1 Kc8) 31. g4 $18 {[%emt 0:02:01]} fxg4 {[%emt 0:00:06]} 32. Ng5 {[%emt 0:03:25]} Ke8 {[%emt 0:03:47]} ({But not} 32... Bxg5 $2 33. fxg5 Rh8 34. Rxg4 $18) 33. Rxg4 {[%emt 0:00:13]} Bd8 {[%emt 0:00:26]} 34. Kd2 {[%emt 0:02:26]} Be7 {[%emt 0:02:00]} 35. R4g2 {[%emt 0:00:10]} Bd8 {[%emt 0:00:22]} 36. Be2 {[%emt 0:03:19]} Be7 {[%emt 0:00:09]} 37. Kd3 {[%emt 0:00:19]} Bd8 {[%emt 0:00:37]} 38. Bg4 {[%emt 0:00:26]} Be7 {[%emt 0:01:30]} 39. b5 {[%emt 0:03:29]} cxb5 {[%emt 0:04:13]} 40. Be1 {[%emt 0:00:39]} Bd8 {[%emt 0:03:56]} (40... Rxh4 {was necessary.} 41. Bxh4 Rxh4) 41. Ke3 {[%emt 0:02:52]} (41. Bxh5 $142 Rxh5 42. Nf3) 41... Rh8 {[%emt 0:01:20]} (41... Rxh4 $142 42. Bxh4 Rxh4) 42. Bxh5 {[%emt 0:04:04]} Rxh5 {[%emt 0:00:14] Black is weak on the dark squares} 43. Nf3 {[%emt 0:00:34]} Kd7 {[%emt 0:01:52]} 44. Ba5 {[%emt 0:01:10]} Ne8 $2 {[%emt 0:00:35] [#]} (44... Be7 45. Ke2 Rf5) 45. c6+ $1 {[%emt 0:01:19][%mdl 512] White is clearly winning.} bxc6 {[%emt 0:00:26]} 46. Bxd8 {[%emt 0:00:15]} Kxd8 {[%emt 0:02:11]} 47. Rc2 {[%emt 0:00:36] Weighted Error Value: White=0.13 (very precise) /Black=0.25 (precise) .  Mistake:       	White=1     	Black=6      Inaccurate:     	White=1     	Black=1      OK:         	White=18    	Black=8      Best:        	White=1     	---} 1-0

[Event "III Menorca Open-A 2024"]
[Site "Ciutadella Menorca"]
[Date "2024.04.05"]
[Round "6.15"]
[White "Pranav Vijay"]
[Black "Koelle, Tobias"]
[Result "1-0"]
[ECO "B30"]
[WhiteElo "2252"]
[BlackElo "2467"]
[Annotator "TA"]
[PlyCount "67"]
[EventDate "2024.04.02"]
[EventType "swiss"]
[EventCountry "ESP"]
[SourceTitle "playchess.com"]
[Source "ChessBase"]
[SourceQuality "1"]
[TimeControl "5400+30"]

{[%evp 12,67,21,11,10,0,16,14,18,11,24,28,49,37,41,41,102,96,98,88,147,115,120,127,120,98,118,111,155,115,174,118,133,131,196,193,240,231,383,381,785,781,786,766,2359,2281,2231,2162,29978,6518,29983,29984,29984,29985,4937,4619,29982,9681]} 1. e4 {[%emt 0:00:05]} c5 {[%emt 0:00:05]} 2. Nc3 {[%emt 0:00:08]} Nc6 {[%emt 0:01:15]} 3. Bb5 {[%emt 0:00:10]} Nd4 {[%emt 0:01:39]} 4. Bc4 {[%emt 0:00:19]} e6 {[%emt 0:03:38]} 5. Nge2 {[%emt 0:00:32]} Ne7 {[%emt 0:04:37]} 6. Nxd4 {[%emt 0:07:56]} cxd4 {[%emt 0:02:07]} 7. Ne2 {[%emt 0:00:10]} Nc6 {[%emt 0:01:17]} 8. O-O {[%emt 0:00:31]} Bc5 {[%emt 0:03:40]} 9. a3 {[%emt 0:08:32][%cal Ba2a3,Ba3a4][%mdl 32]} O-O {[%emt 0:03:51] The position is equal.} 10. d3 {[%emt 0:01:04]} a6 {[%emt 0:03:17][%cal Ba7a6,Ba6a5][%mdl 32]} 11. Bb3 {[%emt 0:04:16]} b5 {[%emt 0:04:13]} 12. f4 {[%emt 0:03:01]} a5 {[%emt 0:07:35]} 13. a4 {[%emt 0:02:49]} Ba6 {[%emt 0:03:23]} (13... bxa4 $14 14. Bxa4 f5) 14. f5 $16 {[%emt 0:04:07]} Be7 {[%emt 0:07:18]} 15. Nf4 {[%emt 0:09:27]} exf5 {[%emt 0:13:01]} (15... bxa4 $142 16. Bxa4 Bb7) 16. exf5 {[%emt 0:06:46] Hoping for axb5.} bxa4 {[%emt 0:00:26]} 17. Bxa4 {[%emt 0:03:36]} Bb7 {[%emt 0:02:14]} 18. Nh5 {[%emt 0:05:53] aiming for Qg4.} Kh8 {[%emt 0:03:18]} 19. Qf3 {[%emt 0:03:09]} (19. f6 gxf6 20. Rf3 Rg8 $11) 19... Bf6 {[%emt 0:03:34]} 20. Bf4 {[%emt 0:02:07]} Rc8 {[%emt 0:01:28]} (20... Qb6 $16) 21. Bd6 {[%emt 0:13:44]} ({Better is} 21. Qd5 $18) 21... Re8 {[%emt 0:03:44]} 22. Qd5 $36 {[%emt 0:06:03][%cal Of1e1][%mdl 2048] White is in control. White has more active pieces.} Re2 {[%emt 0:04:19]} (22... Qb6 $16 23. Nxf6 (23. Qxf7 Ne5 $18) 23... Ne5) 23. Nf4 $18 {[%emt 0:03:14][%cal Bh5f4,Bf4g6,Bg6e7,Be7c8,Bc8d6,Bd6b7][%mdl 32]} (23. Qxf7 $2 Ne5 24. Nf4 Nxf7 $19) 23... Rd2 {[%emt 0:01:21]} (23... Re3 {was necessary.} 24. Qxf7 Ne7) 24. Qxf7 {[%emt 0:00:58]} Ne5 $2 {[%emt 0:02:07]} (24... Qe8 {was worth a try.} 25. Qxe8+ Rxe8) 25. Qh5 $1 {[%emt 0:01:03]} Qb6 $2 {[%emt 0:03:04] [#]} (25... Qe8 26. Qxe8+ Rxe8) 26. Bxe5 $1 {[%emt 0:02:15]} Bxe5 {[%emt 0:00:01] [#]} 27. Rfe1 $1 {[%emt 0:01:24]} d6 {[%emt 0:01:08]} (27... Qd6 28. Rxe5) 28. Ng6+ {[%emt 0:00:10]} Kg8 {[%emt 0:00:01]} 29. Ne7+ {[%emt 0:00:12]} (29. Nxe5 Rxg2+ 30. Kf1 dxe5 31. Rxe5 Rf8 $14 (31... Qxb2 32. Re8+ Rxe8 33. Qxe8#)) (29. Bb3+ Qxb3 30. Ne7+ (30. cxb3 $2 Rxg2+ 31. Kf1 hxg6 $19) 30... Kf8 31. cxb3 Rxg2+ 32. Kf1 Rcc2 33. Rxe5 (33. Qh4 Ba6 $11) 33... dxe5 34. Ng6+ (34. Qh4 Ba6 $11) 34... hxg6 35. fxg6 Rgf2+ 36. Ke1 Rxh2 37. Qf5+ (37. Qxe5 $2 Rh1#) 37... Ke7 38. Qxe5+ Kd7 39. Qxg7+ (39. Qxd4+ Ke6 $11) 39... Kc8 40. Qf8+ (40. Qxd4 $2 Rh1+) 40... Kc7 41. Qf4+ (41. Rxa5 $2 Rc1#) 41... Kd7 42. Qf7+ (42. Rxa5 Rh1+) (42. Qxd4+ Ke6 $11) 42... Kc8 $14) 29... Kf8 {[%emt 0:01:14]} 30. Nxc8 {[%emt 0:00:07][%csl Ga4][%cal Rh5e8]} Rxg2+ {[%emt 0:00:06]} 31. Kf1 {[%emt 0:00:05][%csl Ga4][%cal Rh5e8]} Qd8 {[%emt 0:00:20] [#]} 32. Nxd6 $1 {[%emt 0:00:21][%csl Gd6][%cal Rh5f7]} g6 {[%emt 0:00:30]} 33. Nxb7 {[%emt 0:01:02]} Qd5 {[%emt 0:00:27] [#]} 34. Rxe5 $1 {[%emt 0:00:08] Weighted Error Value: White=0.06 (flawless) /Black=1.02.  Mistake:       	White=1     	Black=7      Inaccurate:     	---       	Black=1      OK:         	White=8     	Black=4      Best:        	---       	Black=1      Strong:       	White=2     	---} 1-0

[Event "III Menorca Open-A 2024"]
[Site "Ciutadella Menorca"]
[Date "2024.04.05"]
[Round "6.16"]
[White "Sanal, Vahap"]
[Black "Agmanov, Zhandos"]
[Result "1/2-1/2"]
[ECO "A13"]
[WhiteElo "2565"]
[BlackElo "2458"]
[Annotator "TA"]
[PlyCount "35"]
[EventDate "2024.04.02"]
[EventType "swiss"]
[EventCountry "ESP"]
[SourceTitle "playchess.com"]
[Source "ChessBase"]
[SourceQuality "1"]
[TimeControl "5400+30"]

{[%evp 10,35,7,0,9,0,0,0,0,0,34,-8,0,0,0,0,0,0,0,0,0,0,18,0,0,-8,0,0]} 1. Nf3 {[%emt 0:00:04]} Nf6 {[%emt 0:05:03]} 2. e3 {[%emt 0:00:09]} d5 {[%emt 0:00:55]} 3. b3 {[%emt 0:00:24]} e6 {[%emt 0:01:26]} 4. Bb2 {[%emt 0:00:09]} Bd6 {[%emt 0:02:13]} 5. c4 {[%emt 0:00:40]} O-O {[%emt 0:04:18]} 6. Be2 {[%emt 0:00:27]} Re8 {[%emt 0:01:25]} 7. d4 {[%emt 0:00:43]} b6 {[%emt 0:00:44]} 8. O-O {[%emt 0:00:10]} Bb7 {[%emt 0:00:25]} 9. Nc3 {[%emt 0:02:12]} a6 {[%emt 0:00:38]} 10. Rc1 {[%emt 0:01:11]} Nbd7 {[%emt 0:02:22] The position is equal.} 11. Qc2 {[%emt 0:03:19]} c5 {[%emt 0:06:07]} 12. cxd5 {[%emt 0:01:08]} exd5 {[%emt 0:00:33]} 13. Rfd1 {[%emt 0:02:08]} Rc8 {[%emt 0:05:09]} 14. dxc5 {[%emt 0:01:05]} bxc5 {[%emt 0:00:39]} 15. Qf5 {[%emt 0:08:33]} Qe7 {[%emt 0:06:48]} 16. Qh3 {[%emt 0:05:48]} (16. Nxd5 $5 Nxd5 17. Rxd5 $14) 16... Ne5 {[%emt 0:13:37]} 17. Na4 {[%emt 0:17:08] [#]} d4 $1 {[%emt 0:09:23] ...dxe3 is the strong threat.} 18. Nxe5 $1 {[%emt 0:07:19] A rather calm draw.   Weighted Error Value: White=0.06 (flawless) /Black=0.08 (flawless) .  Inaccurate:     	White=2     	Black=1      OK:         	White=6     	Black=4      Strong:       	White=1     	---} ({But not} 18. exd4 Nxf3+ 19. Bxf3 cxd4 $17) 1/2-1/2

[Event "III Menorca Open-A 2024"]
[Site "Ciutadella Menorca"]
[Date "2024.04.05"]
[Round "6.17"]
[White "Zhu, Jiner"]
[Black "Alonso Rosell, Alvar"]
[Result "1/2-1/2"]
[ECO "B53"]
[WhiteElo "2463"]
[BlackElo "2562"]
[Annotator "TA"]
[PlyCount "227"]
[EventDate "2024.04.02"]
[EventType "swiss"]
[EventCountry "ESP"]
[SourceTitle "playchess.com"]
[Source "ChessBase"]
[SourceQuality "1"]
[TimeControl "5400+30"]

{[%evp 9,227,19,17,8,6,6,4,15,15,11,29,-13,32,-10,1,13,10,23,16,-3,26,13,13,0,0,0,52,29,60,55,58,-58,-44,-60,-50,-53,-51,-52,-53,-52,-15,-27,0,-100,-96,-129,73,22,223,232,267,253,332,349,384,360,385,369,494,494,649,552,585,588,373,241,342,220,197,212,219,220,225,235,220,218,398,432,436,441,433,432,391,385,354,347,469,478,797,780,853,836,818,730,686,606,826,805,804,623,832,712,744,619,689,0,677,586,637,568,531,456,451,102,95,100,235,75,29977,72,72,64,64,64,64,64,64,64,64,64,64,64,64,64,64,64,64,64,64,64,64,64,64,64,64,64,64,64,64,64,64,64,64,64,64,64,64,64,64,64,64,64,64,64,64,64,64,64,64,64,64,64,64,64,64,57,64,64,64,64,64,64,71,46,46,46,53,14,0,0,0,0,8,8,8,8,8,8,8,8,8,0,0,0,0,0,0,0,0,0,0,0,0,0,8,0,0,0,0,0]} 1. e4 {[%emt 0:00:04]} c5 {[%emt 0:04:27]} 2. Nf3 {[%emt 0:00:09]} d6 {[%emt 0:00:07]} 3. Nc3 {[%emt 0:00:28]} Nf6 {[%emt 0:01:14]} 4. d4 {[%emt 0:00:10]} cxd4 {[%emt 0:00:07]} 5. Qxd4 {[%emt 0:00:04]} Nc6 {[%emt 0:00:40]} 6. Qd3 {[%emt 0:00:10]} g6 {[%emt 0:39:32]} 7. Nd5 {[%emt 0:00:21]} Bg7 {[%emt 0:03:16]} 8. c3 {[%emt 0:00:09]} O-O {[%emt 0:02:40]} 9. Bg5 {[%emt 0:00:08]} Nd7 {[%emt 0:26:23]} 10. Qe3 {[%emt 0:16:29]} Nc5 {[%emt 0:03:44]} 11. b4 {[%emt 0:09:54]} Ne6 {[%emt 0:06:10]} 12. Bh6 {[%emt 0:00:10]} Nc7 {[%emt 0:01:20]} 13. Bxg7 {[%emt 0:04:37]} Kxg7 {[%emt 0:00:02]} 14. Be2 {[%emt 0:00:33]} e6 {[%emt 0:00:40]} 15. Nxc7 {[%emt 0:00:46]} Qxc7 {[%emt 0:00:02]} 16. O-O {[%emt 0:00:20]} e5 {[%emt 0:00:04]} 17. Rfd1 {[%emt 0:02:51]} h6 {[%emt 0:00:42]} (17... Be6 $11) 18. Qd2 {[%emt 0:01:56]} Bg4 {[%emt 0:04:16]} 19. Qxd6 {[%emt 0:00:43]} Rfc8 {[%emt 0:00:09][%cal Oc6d4]} 20. a3 {[%emt 0:03:06] [#]} (20. Kf1 $14) 20... Nd4 $1 $15 {[%emt 0:00:25]} 21. Rxd4 {[%emt 0:57:52]} exd4 {[%emt 0:00:09]} 22. Qxd4+ {[%emt 0:00:00]} Kg8 {[%emt 0:00:20]} 23. c4 {[%emt 0:00:00]} a5 {[%emt 0:00:58][%mdl 1024] Black has compensation.} 24. b5 $1 {[%emt 0:00:00]} Re8 {[%emt 0:03:09]} 25. Qe3 {[%emt 0:02:00] Prevents Qf4} Rad8 {[%emt 0:01:23]} 26. c5 {[%emt 0:00:00]} (26. Rc1 $11 {remains equal.}) 26... Qe7 $17 {[%emt 0:00:57]} 27. h3 {[%emt 0:00:00]} Bc8 {[%emt 0:00:32]} (27... Qxe4 $1 $17 {stays on course. aiming for ...Qc2.} 28. hxg4 Qc2 29. Qxh6 (29. Ne5 $2 Qb2 $19) 29... Qb2 (29... Rxe2 30. Ng5 $11)) 28. Qxh6 {[%emt 0:00:00]} (28. e5 $16 Be6 29. Rc1 (29. Qxh6 Qxc5 30. Bf1 Bd5 $11)) 28... Qf8 {[%emt 0:00:25]} (28... Qxe4 $11 {and Black is okay.} 29. Bf1 Rd5) 29. Qe3 $18 {[%emt 0:00:00]} Bf5 {[%emt 0:00:35]} 30. e5 {[%emt 0:00:00]} Rd5 {[%emt 0:00:29]} 31. Rc1 {[%emt 0:00:00]} Rc8 {[%emt 0:00:28]} 32. c6 {[%emt 0:00:00]} bxc6 {[%emt 0:00:22]} 33. bxc6 {[%emt 0:00:00]} Qe8 {[%emt 0:00:29]} 34. Bc4 {[%emt 0:00:00]} Rdd8 {[%emt 0:00:06]} 35. Nd4 {[%emt 0:00:00] Strongly threatening Nxf5.} Rxd4 {[%emt 0:01:04]} 36. Qxd4 {[%emt 0:00:00]} Rxc6 {[%emt 0:00:05]} 37. Rd1 {[%emt 0:00:00] Hoping for Bb5.} Rc7 {[%emt 0:00:42]} (37... Qe7 $142 38. g4 Bc8) 38. Qd8 {[%emt 0:00:00]} Qxd8 {[%emt 0:00:01]} 39. Rxd8+ {[%emt 0:00:00][%mdl 4096] Endgame. KRB-KRB} Kg7 {[%emt 0:00:01]} 40. Rd4 {[%emt 0:00:00][%cal Bd8d4,Bd4f4,Bf4f5][%mdl 32]} g5 {[%emt 0:00:09]} 41. f4 {[%emt 0:00:00]} gxf4 {[%emt 0:01:21]} 42. Rxf4 {[%emt 0:00:00]} Bc8 $2 {[%emt 0:01:06]} (42... Bg6 {was worth a try.} 43. e6 fxe6) 43. Kf2 {[%emt 0:00:00]} Re7 {[%emt 0:00:03]} 44. h4 {[%emt 0:00:00]} Bd7 {[%emt 0:00:18]} 45. g4 {[%emt 0:00:00]} Be8 {[%emt 0:00:01]} 46. Rf5 {[%emt 0:00:00]} Rc7 {[%emt 0:00:07]} 47. Be2 {[%emt 0:00:00]} Rc2 {[%emt 0:02:02] [#]} 48. e6 $1 {[%emt 0:00:00][%cal Be5e6,Be6e7][%mdl 32]} a4 {[%emt 0:00:28]} (48... f6 $142 49. Rxa5 Rd2 50. Ra7+ Kh6) (48... fxe6 49. Rxa5) 49. e7 {[%emt 0:00:00]} Rc7 {[%emt 0:00:02]} 50. Re5 {[%emt 0:00:00]} f6 {[%emt 0:00:00]} 51. Re3 {[%emt 0:00:00]} Kf7 {[%emt 0:00:17]} 52. g5 {[%emt 0:00:00]} Kg7 {[%emt 0:00:06]} 53. Kg3 {[%emt 0:00:00]} fxg5 {[%emt 0:00:47]} 54. hxg5 {[%emt 0:00:00]} Rc5 {[%emt 0:01:29]} 55. Kf4 {[%emt 0:00:00]} Rc7 {[%emt 0:00:14]} 56. Bd1 {[%emt 0:02:18]} Rc1 {[%emt 0:00:20]} 57. Be2 {[%emt 0:03:42]} Rc7 $1 {[%emt 0:00:48]} 58. Re5 {[%emt 0:00:21] Dodges Rc5} Rb7 {[%emt 0:00:12]} 59. Bc4 {[%emt 0:02:17]} Rb1 {[%emt 0:00:20]} 60. Ke3 {[%emt 0:02:48]} Ra1 {[%emt 0:00:39]} 61. Kd4 $2 {[%emt 0:00:32]} (61. Kf2 $18) 61... Rxa3 $16 {[%emt 0:00:27]} 62. Rf5 {[%emt 0:01:00] White wants to mate with Rf8.} Rg3 {[%emt 0:00:56] [#]} 63. Rf8 $2 {[%emt 0:00:05]} (63. Ke5 $1 $18 {Rf8 would now be deadly.} a3 64. Rf8 Rxg5+ 65. Ke6) 63... Rg4+ $2 {[%emt 0:00:35][%mdl 8192] [#]} (63... Rxg5 $16 64. Rxe8 Kf6) 64. Kc3 $2 {[%emt 0:00:39]} (64. Kc5 $1 {mates} Rxc4+ 65. Kxc4 Bh5 66. e8=Q (66. e8=R Kg6 $18) 66... Bxe8 67. Rxe8 Kg6 68. Re5 Kf7 69. Kd5) 64... Rg3+ {[%emt 0:00:25]} 65. Kb4 {[%emt 0:00:27] White is more active.} Rxg5 $1 {[%emt 0:00:36]} 66. Rxe8 $14 {[%emt 0:00:11] KRB-KR} Kf6 {[%emt 0:00:04]} 67. Kxa4 {[%emt 0:00:36]} Re5 {[%emt 0:00:16]} 68. Kb4 {[%emt 0:00:20]} Rxe7 {[%emt 0:00:02]} 69. Ra8 {[%emt 0:00:08]} Re5 {[%emt 0:00:11]} 70. Kc3 {[%emt 0:00:08]} Re4 {[%emt 0:00:05]} 71. Kd3 {[%emt 0:00:22]} Rh4 {[%emt 0:00:02]} 72. Re8 {[%emt 0:00:08]} Kf5 {[%emt 0:00:13]} 73. Bd5 {[%emt 0:00:20]} Ra4 {[%emt 0:00:25]} 74. Bc4 {[%emt 0:00:14]} Ra1 {[%emt 0:00:10]} ({Reject} 74... Ra3+ 75. Kd4 $16) 75. Kd4 {[%emt 0:00:09]} Rd1+ {[%emt 0:00:07]} 76. Bd3+ {[%emt 0:00:05]} Kf6 {[%emt 0:00:17]} 77. Rf8+ {[%emt 0:00:13]} Ke6 {[%emt 0:00:21]} 78. Rg8 {[%emt 0:00:14]} Kf6 {[%emt 0:00:14]} 79. Rg6+ {[%emt 0:00:04]} Kf7 {[%emt 0:00:06][%cal Od1d3]} 80. Ra6 {[%emt 0:00:16]} Ke7 {[%emt 0:00:07]} 81. Ke4 {[%emt 0:00:10]} Kd7 {[%emt 0:00:43]} 82. Bb5+ {[%emt 0:00:31]} Ke7 {[%emt 0:00:20]} 83. Ke5 {[%emt 0:01:15]} Re1+ {[%emt 0:00:04]} 84. Kf5 {[%emt 0:00:04]} Re3 {[%emt 0:01:05]} 85. Rh6 {[%emt 0:00:34]} Rf3+ {[%emt 0:00:11]} 86. Ke5 {[%emt 0:00:03]} Re3+ {[%emt 0:00:07]} 87. Kd5 {[%emt 0:00:10]} Re1 {[%emt 0:00:17]} 88. Bc6 {[%emt 0:00:29]} Re2 {[%emt 0:00:29]} 89. Kd4 {[%emt 0:00:03]} Re6 {[%emt 0:00:04]} 90. Rh7+ {[%emt 0:00:03]} Kf6 {[%emt 0:03:35]} 91. Be4 {[%emt 0:00:05]} Re7 {[%emt 0:01:07]} (91... Rd6+ 92. Bd5 Kf5 93. Kc5) 92. Rh6+ {[%emt 0:00:20]} Kg7 {[%emt 0:00:09]} 93. Ra6 {[%emt 0:00:05]} Re8 {[%emt 0:00:44]} 94. Bf5 {[%emt 0:00:04]} Re7 {[%emt 0:01:37]} 95. Kd5 {[%emt 0:00:09]} Kf7 {[%emt 0:01:17]} 96. Be6+ {[%emt 0:00:20]} Kf6 {[%emt 0:00:19]} 97. Rb6 {[%emt 0:00:21]} Rg7 {[%emt 0:00:26]} 98. Bc8+ {[%emt 0:00:14]} Kg5 {[%emt 0:00:20] The position is equal.} 99. Ke5 {[%emt 0:00:03]} Re7+ {[%emt 0:00:51]} 100. Be6 {[%emt 0:00:05]} Rg7 {[%emt 0:00:06]} 101. Rb1 {[%emt 0:00:11]} Kh6 {[%emt 0:00:15]} 102. Rh1+ {[%emt 0:01:29]} Kg5 {[%emt 0:00:02]} 103. Rh2 {[%emt 0:00:10]} Kg6 {[%emt 0:00:23]} 104. Rf2 {[%emt 0:00:24]} Kh6 {[%emt 0:01:18]} 105. Bf7 {[%emt 0:03:16]} Rg5+ {[%emt 0:00:06]} 106. Kf6 {[%emt 0:00:13] White threatens Rh2+ and mate.} Rg6+ $1 {[%emt 0:00:02]} 107. Ke7 {[%emt 0:00:05]} Rg3 {[%emt 0:00:46]} 108. Rf5 {[%emt 0:00:28]} Kg7 {[%emt 0:00:34]} 109. Be6 {[%emt 0:00:25]} Kg6 {[%emt 0:00:07]} 110. Ra5 {[%emt 0:00:21]} Re3 {[%emt 0:02:02]} 111. Ra4 {[%emt 0:00:09]} ({Much less strong is} 111. Rf5 Re4 $16) 111... Rg3 {[%emt 0:00:28]} 112. Re4 {[%emt 0:00:43]} Kg5 {[%emt 0:00:09]} 113. Rg4+ {[%emt 0:00:05]} Rxg4 {[%emt 0:00:04]} 114. Bxg4 {[%emt 0:00:35] Black escapes into a draw.   Weighted Error Value: White=0.27 (precise) /Black=0.40.  Loses game:     	---       	Black=2      Missed win:     	White=2     	---        Mistake:       	White=4     	Black=5      Inaccurate:     	White=6     	Black=9      OK:         	White=24    	Black=29     Best:        	White=5     	Black=5      Strong:       	White=1     	Black=2      Brilliant:      	---       	Black=1} 1/2-1/2

[Event "III Menorca Open-A 2024"]
[Site "Ciutadella Menorca"]
[Date "2024.04.05"]
[Round "6.18"]
[White "Alexakis, Dimitris"]
[Black "Muradli, Mahammad"]
[Result "1-0"]
[ECO "B55"]
[WhiteElo "2443"]
[BlackElo "2555"]
[Annotator "TA"]
[PlyCount "53"]
[EventDate "2024.04.02"]
[EventType "swiss"]
[EventCountry "ESP"]
[SourceTitle "playchess.com"]
[Source "ChessBase"]
[SourceQuality "1"]
[TimeControl "5400+30"]

{[%evp 11,53,0,13,13,16,15,22,12,20,0,15,0,5,18,13,21,54,47,60,63,57,25,51,53,60,55,129,140,148,162,187,183,344,355,343,337,380,395,372,381,400,404,374,362]} 1. e4 {[%emt 0:03:50]} c5 {[%emt 0:00:55]} 2. Nf3 {[%emt 0:00:04]} d6 {[%emt 0:00:05]} 3. d4 {[%emt 0:00:18]} cxd4 {[%emt 0:00:15]} 4. Nxd4 {[%emt 0:00:05]} Nf6 {[%emt 0:00:06]} 5. Bd3 {[%emt 0:00:09]} g6 {[%emt 0:07:27]} 6. O-O {[%emt 0:00:17]} Bg7 {[%emt 0:00:09]} 7. c4 {[%emt 0:01:07]} Nc6 {[%emt 0:00:22]} 8. Ne2 {[%emt 0:01:42]} O-O {[%emt 0:03:13]} 9. Nbc3 {[%emt 0:00:04] The position is equal.} a6 {[%emt 0:03:01]} 10. f3 {[%emt 0:01:42]} Rb8 {[%emt 0:01:34][%cal Ob7b5]} 11. Be3 {[%emt 0:01:04]} Nd7 {[%emt 0:04:57]} 12. Rc1 {[%emt 0:07:03]} Nc5 {[%emt 0:03:58]} 13. b3 {[%emt 0:01:29]} Ne5 {[%emt 0:03:20]} 14. Bb1 {[%emt 0:00:53]} b5 {[%emt 0:00:31]} 15. cxb5 {[%emt 0:07:58]} axb5 {[%emt 0:00:19]} 16. Nd5 {[%emt 0:00:10][%cal Oe3g5]} b4 {[%emt 0:03:45]} 17. Qd2 {[%emt 0:16:05]} Ba6 {[%emt 0:12:09]} 18. Rfd1 $1 {[%emt 0:00:23]} Qd7 {[%emt 0:20:04]} (18... Nc6 $14) 19. Nd4 $16 {[%emt 0:21:21][%cal Of3f4]} (19. Nxb4 $2 Rxb4 20. Nf4 Rb7 $19) 19... Qb7 {[%emt 0:00:35] [#]} 20. f4 $1 {[%emt 0:06:05]} Ng4 {[%emt 0:04:28] Hoping for ...e6.} 21. Nc6 $1 {[%emt 0:00:30]} e6 {[%emt 0:02:05]} (21... Rbe8) 22. Nde7+ $18 {[%emt 0:05:25]} (22. Nxb8 Rxb8 23. h3 Nxe3 24. Nxe3 Nxe4 25. Bxe4 Qxe4 $16) (22. Ndxb4 Rbc8 $16) 22... Kh8 {[%emt 0:00:10]} 23. e5 {[%emt 0:00:29]} (23. Qxd6 Nxe3 24. Rd2 (24. Re1 Nxe4 25. Bxe4 Qb6 $11) 24... Nxe4 (24... Bc3 25. Nxb8 Qxb8 26. Qxc5 $16) 25. Bxe4 Rbe8 $16) ({Less strong is} 23. Bxc5 dxc5 24. Rxc5 Rbe8 $14) 23... Nxe3 {[%emt 0:14:26]} 24. Qxe3 {[%emt 0:00:25] White is winning.} Rbe8 {[%emt 0:01:10]} 25. Rxd6 {[%emt 0:10:05]} Nd7 {[%emt 0:01:44]} 26. Na5 {[%emt 0:01:11] A dynamic duo of knights.} Qb5 {[%emt 0:00:25][%cal Rd7e5]} 27. Nec6 {[%emt 0:00:15] Weighted Error Value: White=0.02 (flawless) /Black=0.28 (precise) .  Mistake:       	---       	Black=2      Inaccurate:     	White=1     	Black=2      OK:         	White=12    	Black=9      Best:        	White=1     	Black=2      Strong:       	White=3     	---} 1-0